fUSD/lending_fUSD_20260514
["ID","MTS","AMOUNT","RATE_DAILY","PERIOD"]
[422263017,1778773869000,-170.41602728,0.00039622,7]
[422263020,1778773869000,-152.54198019,0.00039623,2]
[422263023,1778773869000,-160.78630608,0.00039651,2]
[422263033,1778773869000,-184.09764376,0.00039671,2]
[422263022,1778773869000,-150.09261028,0.00039651,2]
[422263024,1778773869000,-1470.78274373,0.00039656,7]
[422263027,1778773869000,-164.58926228,0.00039671,2]
[422263052,1778773869000,-644.27366165,0.00039726,15]
[422263051,1778773869000,-644.27366165,0.00039726,15]
[422263063,1778773869000,-644.27366165,0.00039726,15]
[422263083,1778773869000,-644.27366165,0.00039726,15]
[422263090,1778773869000,-644.27366165,0.00039726,15]
[422263089,1778773869000,-644.27366165,0.00039726,15]
[422263098,1778773869000,-644.27366165,0.00039726,15]
[422263093,1778773869000,-644.27366165,0.00039726,15]
[422263091,1778773869000,-644.27366165,0.00039726,15]
[422263092,1778773869000,-644.27366165,0.00039726,15]
[422263095,1778773869000,-644.27366165,0.00039726,15]
[422263096,1778773869000,-644.27366165,0.00039726,15]
[422263094,1778773869000,-644.27366165,0.00039726,15]
[422263099,1778773869000,-644.27366165,0.00039726,15]
[422263101,1778773869000,-50000.0,0.0003974,90]
[422263100,1778773869000,-3708.00327478,0.00039726,10]
[422263102,1778773869000,-180.9998603,0.00039741,2]
[422263103,1778773869000,-2972.0,0.00039747,25]
[422263104,1778773869000,-196.59114265,0.00039747,31]
[422263111,1778773869000,-185.66508509,0.00039755,2]
[422263105,1778773869000,-6000.0,0.00039748,31]
[422263110,1778773869000,-184.33439411,0.00039755,2]
[422263106,1778773869000,-187.95086305,0.00039755,2]
[422263107,1778773869000,-191.00590844,0.00039755,2]
[422263108,1778773869000,-173.25137387,0.00039755,2]
[422263109,1778773869000,-154.76558492,0.00039755,2]
[422263112,1778773869000,-181.31853401,0.00039755,2]
[422263057,1778773869000,-644.27366165,0.00039726,15]
[422263081,1778773869000,-644.27366165,0.00039726,15]
[422263080,1778773869000,-644.27366165,0.00039726,15]
[422263097,1778773869000,-644.27366165,0.00039726,15]
[422263084,1778773869000,-644.27366165,0.00039726,15]
[422263058,1778773869000,-644.27366165,0.00039726,15]
[422263088,1778773869000,-644.27366165,0.00039726,15]
[422263056,1778773869000,-644.27366165,0.00039726,15]
[422263065,1778773869000,-644.27366165,0.00039726,15]
[422263060,1778773869000,-644.27366165,0.00039726,15]
[422263064,1778773869000,-644.27366165,0.00039726,15]
[422263062,1778773869000,-644.27366165,0.00039726,15]
[422263059,1778773869000,-644.27366165,0.00039726,15]
[422263061,1778773869000,-644.27366165,0.00039726,15]
[422263068,1778773869000,-644.27366165,0.00039726,15]
[422263070,1778773869000,-644.27366165,0.00039726,15]
[422263069,1778773869000,-644.27366165,0.00039726,15]
[422263067,1778773869000,-644.27366165,0.00039726,15]
[422263066,1778773869000,-644.27366165,0.00039726,15]
[422263074,1778773869000,-644.27366165,0.00039726,15]
[422263086,1778773869000,-644.27366165,0.00039726,15]
[422263071,1778773869000,-644.27366165,0.00039726,15]
[422263087,1778773869000,-644.27366165,0.00039726,15]
[422263085,1778773869000,-644.27366165,0.00039726,15]
[422263079,1778773869000,-644.27366165,0.00039726,15]
[422263078,1778773869000,-644.27366165,0.00039726,15]
[422263082,1778773869000,-644.27366165,0.00039726,15]
[422263077,1778773869000,-644.27366165,0.00039726,15]
[422263073,1778773869000,-644.27366165,0.00039726,15]
[422263072,1778773869000,-644.27366165,0.00039726,15]
[422263076,1778773869000,-644.27366165,0.00039726,15]
[422263075,1778773869000,-644.27366165,0.00039726,15]
[422263150,1778773870000,-11794.6486675,0.000399,20]
[422263157,1778773870000,-328.72,0.00039979,120]
[422263155,1778773870000,-1639.04,0.00039968,120]
[422263149,1778773870000,-243.89502358,0.000399,120]
[422263146,1778773870000,-38000.0,0.000399,30]
[422263148,1778773870000,-15905.27510244,0.000399,2]
[422263144,1778773870000,-442.49626624,0.00039886,90]
[422263140,1778773870000,-189.57680101,0.00039879,30]
[422263141,1778773870000,-1330758.68337728,0.0003988,30]
[422263152,1778773870000,-15594.496226,0.000399,120]
[422263153,1778773870000,-328.72911747,0.00039935,2]
[422263158,1778773870000,-463.0,0.00039986,90]
[422263164,1778773870000,-500.0,0.00039999,31]
[422263154,1778773870000,-328.72911747,0.00039965,2]
[422263156,1778773870000,-75417.76265207,0.0003997,2]
[422263168,1778773870000,-500.0,0.00039999,31]
[422263161,1778773870000,-3852.07654048,0.00039999,120]
[422263167,1778773870000,-500.0,0.00039999,31]
[422263160,1778773870000,-3079.13025834,0.00039999,2]
[422263163,1778773870000,-179.45830567,0.00039999,31]
[422263159,1778773870000,-157.76897131,0.00039998,2]
[422263162,1778773870000,-463.48783964,0.00039999,7]
[422263165,1778773870000,-500.0,0.00039999,31]
[422263166,1778773870000,-500.0,0.00039999,31]
[422263143,1778773870000,-26899.00397627,0.0003988,30]
[422263151,1778773870000,-123814.82079261,0.000399,120]
[422263139,1778773870000,-328.72,0.00039879,120]
[422263113,1778773870000,-222.48110654,0.00039755,2]
[422263145,1778773870000,-3826.04387459,0.00039899,30]
[422263170,1778773870000,-500.0,0.00039999,31]
[422263123,1778773870000,-340.5660685,0.00039789,2]
[422263114,1778773870000,-177.2032442,0.00039755,2]
[422263115,1778773870000,-162.16909621,0.00039755,2]
[422263120,1778773870000,-328.72,0.00039779,120]
[422263116,1778773870000,-202.8329702,0.00039755,2]
[422263122,1778773870000,-43000000.0,0.00039789,12]
[422263117,1778773870000,-282.8378862,0.00039755,2]
[422263118,1778773870000,-159.22505293,0.00039755,2]
[422263119,1778773870000,-174.46858422,0.00039772,2]
[422263124,1778773870000,-3068.80912787,0.00039789,2]
[422263128,1778773870000,-135907.42456471,0.000398,30]
[422263142,1778773870000,-200000.0,0.0003988,30]
[422263132,1778773870000,-460.47,0.00039808,60]
[422263129,1778773870000,-18087.67778621,0.000398,30]
[422263126,1778773870000,-88552.60881034,0.00039789,2]
[422263134,1778773870000,-150.0,0.00039834,2]
[422263133,1778773870000,-577749.2314,0.00039827,30]
[422263125,1778773870000,-88552.60881034,0.00039789,2]
[422263127,1778773870000,-170000.0,0.000398,30]
[422263131,1778773870000,-1579.37,0.00039808,60]
[422263135,1778773870000,-328.72911747,0.00039835,2]
[422263147,1778773870000,-165.3,0.000399,120]
[422263137,1778773870000,-150.0,0.00039871,90]
[422263138,1778773870000,-9049.80473526,0.00039876,31]
[422263136,1778773870000,-328.72911747,0.00039865,2]
[422263130,1778773870000,-50000.0,0.00039808,60]
[422263169,1778773870000,-500.0,0.00039999,31]
[422263121,1778773870000,-300.0,0.00039788,10]
[422263172,1778773870000,-500.0,0.00039999,31]
[422263200,1778773870000,-396.44398711,0.0004,2]
[422263205,1778773870000,-150.49641255,0.0004,120]
[422263204,1778773870000,-454.45236381,0.0004,120]
[422263207,1778773870000,-213.79387096,0.0004,30]
[422263206,1778773870000,-514.81254316,0.0004,5]
[422263209,1778773870000,-319.64171493,0.0004,2]
[422263208,1778773870000,-202.89090682,0.0004,120]
[422263215,1778773870000,-10000.12365498,0.0004,4]
[422263212,1778773870000,-515.67909946,0.0004,2]
[422263213,1778773870000,-610.37805399,0.0004,2]
[422263216,1778773870000,-14190.219881,0.0004,2]
[422263211,1778773870000,-10864.3720254,0.0004,2]
[422263198,1778773870000,-393.87586637,0.0004,30]
[422263214,1778773870000,-245.77571807,0.0004,120]
[422263218,1778773870000,-2736.61521866,0.0004,5]
[422263217,1778773870000,-2045.13316,0.0004,10]
[422263228,1778773870000,-369.17687148,0.0004,3]
[422263226,1778773870000,-365.15522918,0.0004,60]
[422263227,1778773870000,-361.0,0.0004,120]
[422263219,1778773870000,-200.0,0.0004,120]
[422263221,1778773870000,-17149.20777407,0.0004,60]
[422263220,1778773870000,-55591.40986265,0.0004,7]
[422263223,1778773870000,-1000.0,0.0004,30]
[422263171,1778773870000,-500.0,0.00039999,31]
[422263224,1778773870000,-161.0,0.0004,120]
[422263225,1778773870000,-5135.26879041,0.0004,21]
[422263210,1778773870000,-164.01832159,0.0004,2]
[422263203,1778773870000,-4177.06213608,0.0004,2]
[422263222,1778773870000,-5257.34694702,0.0004,7]
[422263202,1778773870000,-1586.11003081,0.0004,2]
[422263199,1778773870000,-383.76373632,0.0004,120]
[422263174,1778773870000,-438.51808393,0.00039999,31]
[422263177,1778773870000,-477.68803144,0.00039999,31]
[422263173,1778773870000,-441.17587774,0.00039999,31]
[422263175,1778773870000,-470.83633214,0.00039999,31]
[422263180,1778773870000,-500.0,0.00039999,31]
[422263179,1778773870000,-500.0,0.00039999,31]
[422263178,1778773870000,-500.0,0.00039999,31]
[422263181,1778773870000,-500.0,0.00039999,31]
[422263182,1778773870000,-500.0,0.00039999,31]
[422263193,1778773870000,-644.27366165,0.00039999,31]
[422263183,1778773870000,-459.29542893,0.00039999,31]
[422263186,1778773870000,-500.0,0.00039999,31]
[422263176,1778773870000,-500.0,0.00039999,31]
[422263191,1778773870000,-500.0,0.00039999,31]
[422263184,1778773870000,-411.29301493,0.00039999,31]
[422263197,1778773870000,-50000.0,0.0004,40]
[422263195,1778773870000,-500.0,0.00039999,31]
[422263194,1778773870000,-644.27366165,0.00039999,31]
[422263201,1778773870000,-24140.66391029,0.0004,2]
[422263196,1778773870000,-500.0,0.00039999,31]
[422263190,1778773870000,-644.27366165,0.00039999,31]
[422263187,1778773870000,-644.27366165,0.00039999,31]
[422263188,1778773870000,-500.0,0.00039999,31]
[422263185,1778773870000,-644.27366165,0.00039999,31]
[422263192,1778773870000,-644.27366165,0.00039999,31]
[422263189,1778773870000,-500.0,0.00039999,31]
[422263267,1778773871000,-10469.0,0.0004,120]
[422263265,1778773871000,-184.0,0.0004,120]
[422263262,1778773871000,-158.37981935,0.0004,120]
[422263263,1778773871000,-159.74390553,0.0004,120]
[422263259,1778773871000,-320.0,0.0004,2]
[422263261,1778773871000,-175.82730706,0.0004,30]
[422263258,1778773871000,-650.0,0.0004,30]
[422263256,1778773871000,-1140.74619075,0.0004,120]
[422263266,1778773871000,-5000.0,0.0004,41]
[422263254,1778773871000,-259.12,0.0004,120]
[422263255,1778773871000,-156.0,0.0004,120]
[422263272,1778773871000,-172.0,0.0004,120]
[422263268,1778773871000,-607.35020292,0.0004,2]
[422263270,1778773871000,-700010.114999,0.0004,120]
[422263275,1778773871000,-12299.814781,0.0004,120]
[422263269,1778773871000,-5006.0,0.0004,7]
[422263274,1778773871000,-7458.9758037,0.0004,120]
[422263273,1778773871000,-34530.68742249,0.0004,50]
[422263276,1778773871000,-21000.0,0.0004,30]
[422263278,1778773871000,-54086.50166796,0.0004,40]
[422263277,1778773871000,-77975.92994639,0.0004,30]
[422263286,1778773871000,-550.0,0.0004,120]
[422263260,1778773871000,-5983.05786,0.0004,2]
[422263271,1778773871000,-173.6761,0.0004,120]
[422263257,1778773871000,-200.7,0.0004,120]
[422263241,1778773871000,-500.0,0.0004,7]
[422263253,1778773871000,-152.0,0.0004,120]
[422263229,1778773871000,-823.17948505,0.0004,3]
[422263230,1778773871000,-350.71679414,0.0004,3]
[422263231,1778773871000,-345.26686553,0.0004,30]
[422263238,1778773871000,-500.0,0.0004,7]
[422263239,1778773871000,-500.0,0.0004,7]
[422263232,1778773871000,-150.0,0.0004,7]
[422263233,1778773871000,-1000.0,0.0004,90]
[422263236,1778773871000,-70000.0,0.0004,7]
[422263235,1778773871000,-70000.0,0.0004,7]
[422263234,1778773871000,-70000.0,0.0004,7]
[422263240,1778773871000,-500.0,0.0004,7]
[422263237,1778773871000,-1167.0,0.0004,120]
[422263243,1778773871000,-510.43504673,0.0004,7]
[422263245,1778773871000,-6671.0,0.0004,120]
[422263252,1778773871000,-1834.9519014,0.0004,120]
[422263244,1778773871000,-2791.1282494,0.0004,90]
[422263251,1778773871000,-3500.0,0.0004,30]
[422263250,1778773871000,-1000.0,0.0004,90]
[422263249,1778773871000,-295.0489234,0.0004,120]
[422263242,1778773871000,-500.0,0.0004,7]
[422263246,1778773871000,-10000.0,0.0004,30]
[422263248,1778773871000,-5000.0,0.0004,60]
[422263247,1778773871000,-10000.0,0.0004,30]
[422263264,1778773871000,-522.0,0.0004,120]
[422263279,1778773871000,-90614.18327989,0.0004,120]
[422263281,1778773871000,-158.0,0.0004,2]
[422263282,1778773871000,-280.0,0.0004,30]
[422263312,1778773871000,-2546.52,0.0004,14]
[422263320,1778773871000,-1143.91,0.0004,120]
[422263315,1778773871000,-150.0,0.0004,30]
[422263321,1778773871000,-688.53,0.0004,120]
[422263317,1778773871000,-574.47,0.0004,120]
[422263318,1778773871000,-490.0,0.0004,2]
[422263316,1778773871000,-218.46,0.0004,120]
[422263319,1778773871000,-396.8,0.0004,120]
[422263313,1778773871000,-162.9698959,0.0004,30]
[422263311,1778773871000,-214.95940296,0.0004,10]
[422263322,1778773871000,-331.2,0.0004,120]
[422263324,1778773871000,-15337.66,0.0004,120]
[422263326,1778773871000,-291.83712546,0.00040044,120]
[422263325,1778773871000,-328.72911747,0.00040035,2]
[422263323,1778773871000,-214.95940296,0.0004,3]
[422263328,1778773871000,-328.72911747,0.00040065,2]
[422263327,1778773871000,-152.0,0.00040054,13]
[422263330,1778773871000,-327.56,0.00040089,2]
[422263329,1778773871000,-328.72,0.00040079,120]
[422263332,1778773871000,-9984.61,0.000401,2]
[422263333,1778773871000,-1996.92,0.000401,2]
[422263331,1778773871000,-49923.04,0.000401,2]
[422263280,1778773871000,-1276.04,0.0004,10]
[422263307,1778773871000,-340.55,0.0004,120]
[422263309,1778773871000,-221.87,0.0004,120]
[422263314,1778773871000,-413.57,0.0004,120]
[422263308,1778773871000,-394.29,0.0004,120]
[422263305,1778773871000,-725.4,0.0004,120]
[422263285,1778773871000,-500.0,0.0004,120]
[422263284,1778773871000,-506.61,0.0004,15]
[422263288,1778773871000,-5137.0,0.0004,120]
[422263289,1778773871000,-10560.5197327,0.0004,7]
[422263287,1778773871000,-88705.06629449,0.0004,95]
[422263298,1778773871000,-510.96570625,0.0004,120]
[422263290,1778773871000,-154.0,0.0004,30]
[422263292,1778773871000,-153.0,0.0004,2]
[422263296,1778773871000,-205.0,0.0004,7]
[422263297,1778773871000,-498.08891132,0.0004,120]
[422263295,1778773871000,-250.0,0.0004,7]
[422263283,1778773871000,-10000.0,0.0004,5]
[422263301,1778773871000,-500.0,0.0004,30]
[422263293,1778773871000,-208.3309892,0.0004,120]
[422263291,1778773871000,-10097.18250903,0.0004,4]
[422263300,1778773871000,-500.0,0.0004,30]
[422263310,1778773871000,-1295.35,0.0004,30]
[422263304,1778773871000,-272390.0,0.0004,30]
[422263299,1778773871000,-1920.0,0.0004,120]
[422263303,1778773871000,-583.76148196,0.0004,5]
[422263302,1778773871000,-4540.98590309,0.0004,120]
[422263306,1778773871000,-425.96,0.0004,120]
[422263294,1778773871000,-250.0,0.0004,7]
[422263374,1778773872000,-1551.33,0.0004029,60]
[422263369,1778773872000,-300.0,0.00040279,2]
[422263367,1778773872000,-300.0,0.00040279,2]
[422263378,1778773872000,-1996.92,0.000403,2]
[422263359,1778773872000,-210.18,0.00040276,120]
[422263364,1778773872000,-300.0,0.00040279,2]
[422263361,1778773872000,-279.63,0.00040276,90]
[422263366,1778773872000,-300.0,0.00040279,2]
[422263370,1778773872000,-300.0,0.00040279,2]
[422263362,1778773872000,-150.0,0.00040276,90]
[422263368,1778773872000,-300.0,0.00040279,2]
[422263371,1778773872000,-300.0,0.00040279,2]
[422263380,1778773872000,-202.26,0.000403,7]
[422263375,1778773872000,-1639.04,0.00040295,120]
[422263372,1778773872000,-423.74,0.00040279,2]
[422263376,1778773872000,-49923.04,0.000403,2]
[422263377,1778773872000,-9984.61,0.000403,2]
[422263379,1778773872000,-399.38,0.000403,2]
[422263381,1778773872000,-164.79,0.0004031,120]
[422263383,1778773872000,-775.66,0.0004031,120]
[422263388,1778773872000,-150.0,0.00040394,30]
[422263382,1778773872000,-720.69,0.0004031,120]
[422263384,1778773872000,-328.72911747,0.00040335,2]
[422263385,1778773872000,-167.5,0.0004036,120]
[422263373,1778773872000,-1441.38,0.0004029,60]
[422263363,1778773872000,-328.72,0.00040279,120]
[422263334,1778773872000,-399.38,0.000401,2]
[422263360,1778773872000,-422.93,0.00040276,120]
[422263335,1778773872000,-12540.67,0.000401,2]
[422263336,1778773872000,-5016.27,0.000401,2]
[422263337,1778773872000,-2006.51,0.000401,2]
[422263341,1778773872000,-165.16912315,0.00040117,2]
[422263342,1778773872000,-556.0,0.00040123,18]
[422263338,1778773872000,-4715.29,0.000401,2]
[422263340,1778773872000,-3144.37,0.000401,2]
[422263344,1778773872000,-2984.601012,0.00040147,7]
[422263339,1778773872000,-2508.13,0.000401,2]
[422263343,1778773872000,-328.72911747,0.00040135,2]
[422263348,1778773872000,-4357.89180581,0.00040147,12]
[422263365,1778773872000,-300.0,0.00040279,2]
[422263345,1778773872000,-1505.849517,0.00040147,7]
[422263349,1778773872000,-4357.89180581,0.00040147,12]
[422263355,1778773872000,-59964.88720011,0.000402,120]
[422263351,1778773872000,-17275.6423697,0.00040164,2]
[422263346,1778773872000,-4357.89180592,0.00040147,12]
[422263352,1778773872000,-328.72911747,0.00040165,2]
[422263350,1778773872000,-4357.89180581,0.00040147,12]
[422263353,1778773872000,-348.6357649,0.00040167,7]
[422263354,1778773872000,-328.72,0.00040179,120]
[422263357,1778773872000,-328.72911747,0.00040265,2]
[422263356,1778773872000,-328.72911747,0.00040235,2]
[422263358,1778773872000,-157.76897131,0.00040272,2]
[422263347,1778773872000,-4357.89180581,0.00040147,12]
[422263387,1778773872000,-328.72,0.00040379,120]
[422263399,1778773872000,-328.72,0.00040479,120]
[422263391,1778773872000,-5302.29100787,0.00040394,30]
[422263422,1778773872000,-1470.78274373,0.00040656,7]
[422263418,1778773872000,-1639.04,0.00040621,120]
[422263419,1778773872000,-328.72911747,0.00040635,2]
[422263417,1778773872000,-328.72,0.00040579,120]
[422263425,1778773872000,-350.0,0.00040685,5]
[422263426,1778773872000,-556.0,0.00040685,18]
[422263428,1778773872000,-80000.0,0.000407,120]
[422263427,1778773872000,-165.30545491,0.00040686,2]
[422263424,1778773872000,-328.72,0.00040679,120]
[422263429,1778773872000,-80000.0,0.000407,120]
[422263430,1778773872000,-80000.0,0.000407,120]
[422263423,1778773872000,-328.72911747,0.00040665,2]
[422263433,1778773872000,-80000.0,0.000407,120]
[422263434,1778773872000,-80000.0,0.000407,120]
[422263431,1778773872000,-60000.0,0.000407,120]
[422263437,1778773872000,-88552.60881034,0.000407,30]
[422263443,1778773872000,-613.03,0.00040747,120]
[422263436,1778773872000,-49819.0,0.000407,120]
[422263440,1778773872000,-328.72911747,0.00040735,2]
[422263438,1778773872000,-2116.19,0.000407,120]
[422263439,1778773872000,-424.37205054,0.000407,12]
[422263441,1778773872000,-158.2,0.00040747,120]
[422263435,1778773872000,-80000.0,0.000407,120]
[422263442,1778773872000,-209.21,0.00040747,120]
[422263432,1778773872000,-80000.0,0.000407,120]
[422263421,1778773872000,-169.99999999,0.00040647,2]
[422263386,1778773872000,-328.72911747,0.00040365,2]
[422263416,1778773872000,-328.72911747,0.00040565,2]
[422263389,1778773872000,-932.00554754,0.00040394,30]
[422263395,1778773872000,-1724611.96209214,0.000404,120]
[422263392,1778773872000,-150.0,0.00040394,30]
[422263390,1778773872000,-150.0,0.00040394,30]
[422263400,1778773872000,-1000000.0,0.0004049,120]
[422263397,1778773872000,-328.72911747,0.00040435,2]
[422263398,1778773872000,-328.72911747,0.00040465,2]
[422263420,1778773872000,-1000.0,0.00040642,120]
[422263396,1778773872000,-151.91306931,0.00040403,120]
[422263394,1778773872000,-209.51,0.00040399,120]
[422263401,1778773872000,-11387.06741089,0.000405,120]
[422263403,1778773872000,-1484.38230829,0.000405,30]
[422263393,1778773872000,-440.10438255,0.00040394,30]
[422263404,1778773872000,-5000.0,0.000405,21]
[422263402,1778773872000,-153.21980407,0.000405,120]
[422263413,1778773872000,-69922.52003441,0.0004054,120]
[422263414,1778773872000,-157.76897131,0.00040546,2]
[422263410,1778773872000,-1576.33,0.0004051,120]
[422263409,1778773872000,-65559.68163181,0.000405,60]
[422263415,1778773872000,-500.0,0.00040548,2]
[422263411,1778773872000,-184.14,0.00040513,30]
[422263412,1778773872000,-328.72911747,0.00040535,2]
[422263406,1778773872000,-152.0,0.000405,120]
[422263405,1778773872000,-60644.88379964,0.000405,120]
[422263407,1778773872000,-8447.86506626,0.000405,120]
[422263408,1778773872000,-14034.00318805,0.000405,120]
[422263476,1778773873000,-5000.0,0.00040928,31]
[422263480,1778773873000,-300.66614129,0.00040941,14]
[422263474,1778773873000,-250000.0,0.000409,30]
[422263479,1778773873000,-328.72911747,0.00040935,2]
[422263478,1778773873000,-171.0,0.0004093,2]
[422263472,1778773873000,-227.890867,0.000409,120]
[422263483,1778773873000,-1639.04,0.00040948,120]
[422263484,1778773873000,-369.31216931,0.00040948,7]
[422263473,1778773873000,-30000.0,0.000409,30]
[422263475,1778773873000,-165.30545491,0.00040912,2]
[422263481,1778773873000,-354.51947816,0.00040945,7]
[422263495,1778773873000,-370.95907974,0.00040997,2]
[422263477,1778773873000,-150.0,0.0004093,2]
[422263490,1778773873000,-350.0,0.00040991,2]
[422263491,1778773873000,-350.0,0.00040991,2]
[422263488,1778773873000,-758.38639796,0.0004098,60]
[422263486,1778773873000,-328.72911747,0.00040965,2]
[422263493,1778773873000,-400.0,0.00040997,2]
[422263496,1778773873000,-182.81273,0.00040999,30]
[422263489,1778773873000,-185.81,0.0004099,120]
[422263492,1778773873000,-262.0,0.00040991,2]
[422263487,1778773873000,-328.72,0.00040979,120]
[422263494,1778773873000,-713.5607913,0.00040997,2]
[422263466,1778773873000,-328.72,0.00040879,120]
[422263482,1778773873000,-445.02462966,0.00040945,7]
[422263470,1778773873000,-230.18763728,0.00040893,2]
[422263453,1778773873000,-487.62949596,0.000408,120]
[422263468,1778773873000,-340.5660685,0.0004088,30]
[422263485,1778773873000,-175.38176636,0.00040948,7]
[422263445,1778773873000,-309.39,0.0004075,120]
[422263447,1778773873000,-328.72911747,0.00040765,2]
[422263444,1778773873000,-181.25,0.00040747,120]
[422263446,1778773873000,-187.76,0.0004075,120]
[422263449,1778773873000,-303.57285338,0.00040767,120]
[422263459,1778773873000,-328.72911747,0.00040835,2]
[422263448,1778773873000,-350.0,0.00040767,120]
[422263451,1778773873000,-330.0,0.00040783,83]
[422263452,1778773873000,-36126.0,0.000408,120]
[422263450,1778773873000,-328.72,0.00040779,120]
[422263469,1778773873000,-175266.96135593,0.0004089,120]
[422263457,1778773873000,-168.84213424,0.00040833,120]
[422263456,1778773873000,-157.76897131,0.0004082,2]
[422263455,1778773873000,-5862.35001133,0.000408,90]
[422263458,1778773873000,-150.0,0.00040834,2]
[422263460,1778773873000,-6206.04,0.00040846,2]
[422263464,1778773873000,-328.72911747,0.00040865,2]
[422263471,1778773873000,-150057.76998352,0.000409,30]
[422263461,1778773873000,-950.0,0.00040851,2]
[422263462,1778773873000,-950.0,0.00040851,2]
[422263463,1778773873000,-902.0,0.00040851,2]
[422263465,1778773873000,-275.6,0.00040877,90]
[422263467,1778773873000,-207596.97985995,0.0004088,30]
[422263454,1778773873000,-155.6027499,0.000408,30]
[422263498,1778773873000,-3002.1476118,0.00041,30]
[422263506,1778773873000,-65072.065728,0.00041,120]
[422263507,1778773873000,-51027.58965299,0.00041,30]
[422263529,1778773873000,-220.58305087,0.00041,120]
[422263530,1778773873000,-980.15669123,0.00041,120]
[422263533,1778773873000,-5000.0,0.00041,42]
[422263534,1778773873000,-19999.99895355,0.00041,60]
[422263532,1778773873000,-461000.0,0.00041,90]
[422263535,1778773873000,-100000.0,0.00041,7]
[422263525,1778773873000,-1540.43115,0.00041,15]
[422263531,1778773873000,-194.71799938,0.00041,30]
[422263537,1778773873000,-303.4839362,0.00041,35]
[422263541,1778773873000,-14399.57965973,0.00041,60]
[422263539,1778773873000,-41875.82186115,0.00041,120]
[422263527,1778773873000,-2043.66,0.00041,75]
[422263536,1778773873000,-2001.611526,0.00041,120]
[422263542,1778773873000,-22600.0,0.00041,120]
[422263545,1778773873000,-1000000.0,0.00041,120]
[422263543,1778773873000,-10453.59219912,0.00041,5]
[422263544,1778773873000,-1000000.0,0.00041,120]
[422263547,1778773873000,-999999.0,0.00041,120]
[422263548,1778773873000,-12688.57167813,0.00041,120]
[422263550,1778773873000,-36660.999999,0.00041,120]
[422263549,1778773873000,-10100.0,0.00041,30]
[422263546,1778773873000,-1000000.0,0.00041,120]
[422263551,1778773873000,-100000.0,0.00041,11]
[422263552,1778773873000,-3820.35387748,0.00041,10]
[422263540,1778773873000,-1457.50217546,0.00041,120]
[422263528,1778773873000,-2234.85297892,0.00041,120]
[422263538,1778773873000,-26891.50066877,0.00041,30]
[422263524,1778773873000,-201635.05480266,0.00041,15]
[422263509,1778773873000,-5000.0,0.00041,21]
[422263526,1778773873000,-211.86,0.00041,31]
[422263508,1778773873000,-1120.0,0.00041,30]
[422263499,1778773873000,-194.08234027,0.00041,30]
[422263497,1778773873000,-50000.0,0.00041,41]
[422263500,1778773873000,-57991.85199647,0.00041,5]
[422263504,1778773873000,-1000000.0,0.00041,120]
[422263502,1778773873000,-1244.6370663,0.00041,2]
[422263503,1778773873000,-150.0,0.00041,120]
[422263501,1778773873000,-1000.0,0.00041,120]
[422263511,1778773873000,-50000.0,0.00041,120]
[422263510,1778773873000,-403599.13,0.00041,120]
[422263505,1778773873000,-188543.50122413,0.00041,5]
[422263518,1778773873000,-375.52,0.00041,120]
[422263520,1778773873000,-500.25,0.00041,11]
[422263512,1778773873000,-2073.2299766,0.00041,120]
[422263521,1778773873000,-10178.07890973,0.00041,30]
[422263522,1778773873000,-275.46,0.00041,120]
[422263519,1778773873000,-500.0,0.00041,11]